[Event "The Schackveckan 2023: Chessweek Elo-tournaments Group 2"]
[Site "Göteborgs schackcentrum, Vegagatan 20, Gothenburg, Sweden"]
[Date "2023.08.06"]
[Round "2.5"]
[White "Brattgjerd, August Minh"]
[Black "Yang, Mandi"]
[Result "0-1"]
[TimeControl "90 minutes for 40 moves + 30 minutes for the rest of the game + 30 seconds per move from move one."]
[WhiteFideId "1550446"]
[BlackFideId "1774778"]
[WhiteElo "1495"]
[BlackElo "1457"]

1. d4 {[%clk 01:30:57]} {[%emt 00:00:03]} d5 {[%clk 01:30:56]} {[%emt
00:00:04]} 2. Bf4 {[%clk 01:31:20]} {[%emt 00:00:05]} Nf6 {[%clk 01:31:13]}
{[%emt 00:00:14]} 3. e3 {[%clk 01:31:44]} {[%emt 00:00:07]} c5 {[%clk
01:31:36]} {[%emt 00:00:07]} 4. c3 {[%clk 01:32:08]} {[%emt 00:00:06]} Nc6
{[%clk 01:31:32]} {[%emt 00:00:35]} 5. Nf3 {[%clk 01:32:17]} {[%emt 00:00:20]}
Qb6 {[%clk 01:31:44]} {[%emt 00:00:17]} 6. Qb3 {[%clk 01:32:28]} {[%emt
00:00:19]} c4 {[%clk 01:31:47]} {[%emt 00:00:29]} 7. Qc2 {[%clk 01:32:34]}
{[%emt 00:00:23]} Bf5 {[%clk 01:31:49]} {[%emt 00:00:28]} 8. Qc1 {[%clk
01:32:18]} {[%emt 00:00:44]} h6 {[%clk 01:30:43]} {[%emt 00:01:38]} 9. h3
{[%clk 01:32:16]} {[%emt 00:00:32]} e6 {[%clk 01:30:10]} {[%emt 00:01:03]} 10.
Be2 {[%clk 01:31:46]} {[%emt 00:00:59]} Ne4 {[%clk 01:25:47]} {[%emt 00:04:53]}
11. Nbd2 {[%clk 01:30:50]} {[%emt 00:01:26]} Bd6 {[%clk 01:25:20]} {[%emt
00:00:58]} 12. Ne5 {[%clk 01:24:25]} {[%emt 00:06:55]} Bxe5 {[%clk 01:21:21]}
{[%emt 00:04:29]} 13. Bxe5 {[%clk 01:23:36]} {[%emt 00:01:18]} Nxe5 {[%clk
01:21:11]} {[%emt 00:00:41]} 14. dxe5 {[%clk 01:23:02]} {[%emt 00:01:03]} Nc5
{[%clk 01:21:22]} {[%emt 00:00:20]} 15. O-O {[%clk 01:21:49]} {[%emt 00:01:43]}
Bd3 {[%clk 01:18:47]} {[%emt 00:03:05]} 16. Bxd3 {[%clk 01:16:09]} {[%emt
00:06:09]} Nxd3 {[%clk 01:19:05]} {[%emt 00:00:13]} 17. Qc2 {[%clk 01:16:19]}
{[%emt 00:00:19]} Nxe5 {[%clk 01:19:06]} {[%emt 00:00:29]} 18. b3 {[%clk
01:16:05]} {[%emt 00:00:44]} cxb3 {[%clk 01:17:42]} {[%emt 00:01:54]} 19. Qxb3
{[%clk 01:15:40]} {[%emt 00:00:55]} Qc6 {[%clk 01:12:46]} {[%emt 00:05:26]} 20.
Rab1 {[%clk 01:15:03]} {[%emt 00:01:07]} b6 {[%clk 01:12:34]} {[%emt 00:00:44]}
21. f4 {[%clk 01:13:26]} {[%emt 00:02:05]} Nd3 {[%clk 01:10:53]} {[%emt
00:02:11]} 22. Nf3 {[%clk 01:12:57]} {[%emt 00:00:58]} O-O {[%clk 01:10:38]}
{[%emt 00:00:46]} 23. Qc2 {[%clk 01:11:31]} {[%emt 00:01:56]} Qc4 {[%clk
01:08:47]} {[%emt 00:02:22]} 24. Nd2 {[%clk 01:09:42]} {[%emt 00:02:17]} Qa6
{[%clk 01:08:18]} {[%emt 00:01:00]} 25. c4 {[%clk 01:08:44]} {[%emt 00:01:29]}
dxc4 {[%clk 01:08:06]} {[%emt 00:00:42]} 26. Qxc4 {[%clk 01:08:08]} {[%emt
00:01:05]} Qxc4 {[%clk 01:08:08]} {[%emt 00:00:29]} 27. Nxc4 {[%emt 00:01:12]}
Rfd8 {[%clk 01:07:32]} 28. Rfd1 {[%clk 01:06:20]} {[%emt 00:02:41]} Rac8 {[%clk
01:07:34]} {[%emt 00:00:29]} 29. Rb3 {[%clk 01:05:27]} {[%emt 00:01:22]} Rxc4
{[%clk 01:03:43]} {[%emt 00:04:22]} 30. Rbxd3 {[%clk 01:05:29]} {[%emt
00:00:28]} Rxd3 {[%clk 01:02:28]} {[%emt 00:01:44]} 31. Rxd3 {[%clk 01:05:49]}
{[%emt 00:00:09]} Kf8 {[%clk 01:02:10]} {[%emt 00:00:49]} 32. Rd7 {[%clk
01:05:15]} {[%emt 00:01:05]} Ra4 {[%clk 01:02:23]} {[%emt 00:00:17]} 33. Rd2
{[%clk 01:05:34]} {[%emt 00:00:11]} Ra3 {[%clk 01:00:32]} {[%emt 00:02:21]} 34.
Kf2 {[%clk 01:05:48]} {[%emt 00:00:15]} Ke7 {[%clk 01:00:40]} {[%emt 00:00:22]}
35. Ke2 {[%emt 00:01:58]} Ra5 {[%clk 01:00:37]} 36. Ke1 {[%clk 00:54:33]}
{[%emt 00:10:48]} Rd5 {[%clk 01:00:50]} {[%emt 00:00:20]} 37. Rc2 {[%clk
00:54:41]} {[%emt 00:00:22]} Kd7 {[%clk 01:00:35]} {[%emt 00:00:45]} 38. Ke2
{[%clk 00:50:37]} {[%emt 00:04:34]} a5 {[%clk 00:55:34]} {[%emt 00:05:30]} 39.
Rc4 {[%clk 00:47:29]} {[%emt 00:03:37]} b5 {[%clk 00:52:48]} {[%emt 00:03:18]}
40. Rc2 {[%clk 00:46:36]} {[%emt 00:01:22]} b4 {[%clk 00:50:50]} {[%emt
00:02:28]} 41. Ke1 {[%clk 00:44:44]} {[%emt 00:02:22]} Rd3 {[%clk 00:45:57]}
{[%emt 00:05:23]} 42. Ke2 {[%clk 00:43:02]} {[%emt 00:02:12]} Rc3 {[%clk
00:45:30]} {[%emt 00:00:58]} 43. Rxc3 {[%clk 00:42:53]} {[%emt 00:00:38]} bxc3
{[%clk 00:45:45]} {[%emt 00:00:16]} 44. Kd3 {[%clk 00:43:22]} c2 {[%clk
00:45:26]} {[%emt 00:00:49]} 45. Kxc2 {[%clk 00:43:49]} {[%emt 00:00:03]} Kc6
{[%clk 00:41:27]} {[%emt 00:04:30]} 46. Kd3 {[%clk 00:40:52]} {[%emt 00:03:26]}
Kb5 {[%clk 00:32:25]} {[%emt 00:09:32]} 47. Kc3 {[%clk 00:40:36]} {[%emt
00:00:45]} f5 {[%clk 00:22:32]} {[%emt 00:10:24]} 48. h4 {[%clk 00:37:53]}
{[%emt 00:03:13]} h5 {[%clk 00:22:31]} {[%emt 00:00:31]} 49. g3 {[%clk
00:37:40]} {[%emt 00:00:42]} a4 {[%clk 00:17:38]} {[%emt 00:05:25]} 50. a3
{[%clk 00:37:07]} {[%emt 00:01:03]} Kc5 {[%clk 00:15:42]} {[%emt 00:02:26]} 51.
Kd3 {[%clk 00:34:57]} {[%emt 00:02:40]} Kd5 {[%clk 00:10:04]} {[%emt 00:06:07]}
52. Kc3 {[%clk 00:34:49]} {[%emt 00:00:38]} Kc5 {[%clk 00:05:15]} {[%emt
00:05:20]} 53. Kd3 {[%clk 00:35:05]} {[%emt 00:00:14]} e5 {[%clk 00:30:05]}
{[%emt 00:05:39]} 54. fxe5 {[%clk 01:02:38]} {[%emt 00:02:57]} Kd5 {[%clk
00:30:25]} {[%emt 00:00:10]} 55. e6 {[%clk 00:59:10]} {[%emt 00:03:59]} Kxe6
{[%clk 00:30:44]} {[%emt 00:00:10]} 56. Kd4 {[%clk 00:56:32]} {[%emt 00:03:08]}
Kd6 {[%clk 00:27:32]} {[%emt 00:03:43]} 57. e4 {[%clk 00:52:32]} {[%emt
00:04:29]} fxe4 {[%clk 00:26:47]} {[%emt 00:01:15]} 58. Kxe4 {[%clk 00:52:59]}
{[%emt 00:00:03]} Ke6 {[%clk 00:24:24]} {[%emt 00:02:53]} 59. Kf4 {[%clk
00:52:20]} {[%emt 00:01:07]} Kd5 {[%clk 00:19:13]} {[%emt 00:05:43]} 60. Kg5
{[%clk 00:51:23]} {[%emt 00:01:27]} Kc4 {[%clk 00:19:41]} {[%emt 00:00:01]} 61.
Kxh5 {[%clk 00:50:58]} {[%emt 00:00:57]} Kb3 {[%clk 00:19:49]} {[%emt
00:00:21]} 62. Kg6 {[%clk 00:51:18]} {[%emt 00:00:11]} Kxa3 {[%clk 00:20:00]}
{[%emt 00:00:18]} 63. Kxg7 {[%clk 00:51:33]} {[%emt 00:00:15]} Kb4 {[%clk
00:20:21]} {[%emt 00:00:09]} 64. h5 {[%clk 00:51:40]} {[%emt 00:00:22]} a3
{[%clk 00:20:30]} {[%emt 00:00:22]} 65. h6 {[%clk 00:51:21]} {[%emt 00:00:48]}
a2 {[%clk 00:20:53]} {[%emt 00:00:08]} 66. h7 {[%clk 00:51:37]} {[%emt
00:00:14]} a1=Q+ {[%emt 00:00:19]} 67. Kg8 {[%clk 00:51:47]} {[%emt 00:00:16]}
Qa8+ {[%clk 00:21:19]} {[%emt 00:00:18]} 68. Kg7 {[%clk 00:51:45]} {[%emt
00:00:31]} Qb7+ {[%clk 00:21:34]} {[%emt 00:00:17]} 69. Kg8 {[%clk 00:51:59]}
{[%emt 00:00:16]} Qc8+ {[%clk 00:21:58]} {[%emt 00:00:06]} 70. Kg7 {[%clk
00:52:11]} {[%emt 00:00:18]} Qd7+ {[%clk 00:22:17]} {[%emt 00:00:11]} 71. Kg8
{[%clk 00:52:29]} {[%emt 00:00:12]} Qe6+ {[%clk 00:22:14]} {[%emt 00:00:33]} 72.
Kg7 {[%clk 00:52:45]} {[%emt 00:00:13]} Qg4+ {[%clk 00:21:57]} {[%emt
00:00:48]} 73. Kh8 {[%clk 00:52:22]} {[%emt 00:00:52]} Qf5 {[%clk 00:21:43]}
{[%emt 00:00:44]} 74. Kg8 {[%clk 00:52:43]} {[%emt 00:00:08]} Qg6+ {[%clk
00:22:01]} {[%emt 00:00:14]} 75. Kh8 {[%clk 00:52:59]} {[%emt 00:00:13]} Qf7
{[%clk 00:22:01]} {[%emt 00:00:30]} 76. g4 {[%clk 00:52:39]} {[%emt 00:00:50]}
Kc5 {[%clk 00:22:30]} {[%emt 00:00:01]} 77. g5 {[%clk 00:53:03]} {[%emt
00:00:07]} Kd6 {[%clk 00:22:59]} {[%emt 00:00:01]} 78. g6 {[%clk 00:53:20]}
{[%emt 00:00:12]} Qf8# {[%clk 00:22:59]} {[%emt 00:00:31]} 0-1

[Event "The Schackveckan 2023: Chessweek Elo-tournaments Group 2"]
[Site "Göteborgs schackcentrum, Vegagatan 20, Gothenburg, Sweden"]
[Date "2023.08.06"]
[Round "2.6"]
[White "Dahlin, Emil"]
[Black "Pintaric, Felix"]
[Result "0-1"]
[TimeControl "90 minutes for 40 moves + 30 minutes for the rest of the game + 30 seconds per move from move one."]
[WhiteFideId "1771035"]
[BlackFideId "1776096"]
[WhiteElo "1284"]
[BlackElo "1483"]

1. e4 {[%clk 01:30:57]} {[%emt 00:00:03]} c5 {[%clk 01:30:54]} {[%emt
00:00:07]} 2. Nf3 {[%clk 01:31:13]} {[%emt 00:00:14]} d6 {[%clk 01:31:14]}
{[%emt 00:00:09]} 3. d4 {[%clk 01:31:29]} {[%emt 00:00:14]} cxd4 {[%clk
01:31:38]} {[%emt 00:00:07]} 4. Nxd4 {[%clk 01:31:47]} {[%emt 00:00:11]} Nf6
{[%clk 01:32:01]} {[%emt 00:00:08]} 5. Nc3 {[%clk 01:31:48]} {[%emt 00:00:28]}
a6 {[%clk 01:32:24]} {[%emt 00:00:07]} 6. f3 {[%clk 01:32:04]} {[%emt
00:00:14]} e5 {[%clk 01:32:31]} {[%emt 00:00:22]} 7. Nb3 {[%clk 01:31:51]}
{[%emt 00:00:44]} Be7 {[%clk 01:32:20]} {[%emt 00:00:40]} 8. Be3 {[%clk
01:31:22]} {[%emt 00:01:00]} O-O {[%clk 01:32:13]} {[%emt 00:00:37]} 9. Qd2
{[%clk 01:30:47]} {[%emt 00:01:04]} h5 {[%clk 01:31:36]} {[%emt 00:01:08]} 10.
O-O-O {[%clk 01:30:09]} {[%emt 00:01:09]} Be6 {[%clk 01:30:54]} {[%emt
00:01:11]} 11. h3 {[%clk 01:20:39]} {[%emt 00:10:00]} Qc7 {[%clk 01:18:15]}
{[%emt 00:13:09]} 12. g4 {[%clk 01:16:14]} {[%emt 00:04:55]} b5 {[%clk
01:15:13]} {[%emt 00:03:33]} 13. Kb1 {[%clk 01:11:19]} {[%emt 00:05:25]} Rd8
{[%clk 01:13:08]} {[%emt 00:02:34]} 14. Nd5 {[%clk 01:07:02]} {[%emt 00:04:47]}
Bxd5 {[%clk 01:13:03]} {[%emt 00:00:35]} 15. exd5 {[%clk 01:07:14]} {[%emt
00:00:18]} h4 {[%clk 01:11:50]} {[%emt 00:01:43]} 16. Qf2 {[%clk 01:06:21]}
{[%emt 00:01:22]} Nbd7 {[%clk 01:11:22]} {[%emt 00:00:59]} 17. g5 {[%clk
01:05:02]} {[%emt 00:01:49]} Nh7 {[%clk 01:08:40]} {[%emt 00:03:12]} 18. Qxh4
{[%clk 01:03:15]} {[%emt 00:02:17]} Rdb8 {[%clk 01:04:47]} {[%emt 00:04:24]} 19.
Bd3 {[%clk 01:01:55]} {[%emt 00:01:49]} g6 {[%clk 01:04:59]} {[%emt 00:00:18]}
20. Qh6 {[%clk 00:55:09]} {[%emt 00:07:16]} Bf8 {[%clk 01:04:31]} {[%emt
00:00:58]} 21. Qh4 {[%clk 00:52:46]} {[%emt 00:02:53]} a5 {[%clk 01:03:53]}
{[%emt 00:01:08]} 22. c3 {[%clk 00:51:18]} {[%emt 00:01:58]} a4 {[%clk
01:00:23]} {[%emt 00:04:00]} 23. Nd2 {[%clk 00:41:56]} {[%emt 00:09:51]} a3
{[%clk 00:58:54]} {[%emt 00:02:00]} 24. Nb3 {[%clk 00:37:57]} {[%emt 00:04:29]}
Nc5 {[%clk 00:57:00]} {[%emt 00:02:24]} 25. Nxc5 {[%clk 00:32:48]} {[%emt
00:05:38]} dxc5 {[%clk 00:57:17]} {[%emt 00:00:14]} 26. b4 {[%clk 00:32:23]}
{[%emt 00:00:55]} cxb4 {[%clk 00:56:03]} {[%emt 00:01:45]} 27. c4 {[%clk
00:26:42]} {[%emt 00:06:10]} bxc4 {[%clk 00:54:48]} {[%emt 00:01:45]} 28. Bxc4
{[%clk 00:21:26]} {[%emt 00:05:45]} b3 {[%clk 00:53:57]} {[%emt 00:01:22]} 29.
axb3 {[%clk 00:20:49]} {[%emt 00:01:07]} Rxb3+ {[%clk 00:51:14]} {[%emt
00:03:12]} 30. Kc2 {[%clk 00:09:00]} {[%emt 00:12:20]} Rxe3 {[%clk 00:50:55]}
{[%emt 00:00:49]} 31. Kd2 {[%clk 00:07:49]} {[%emt 00:01:41]} Rxf3 {[%clk
00:50:37]} {[%emt 00:00:48]} 32. Rdf1 {[%clk 00:04:40]} {[%emt 00:03:40]} Rxf1
{[%clk 00:50:45]} {[%emt 00:00:21]} 33. Rxf1 {[%clk 00:05:01]} {[%emt
00:00:09]} a2 {[%clk 00:50:41]} {[%emt 00:00:34]} 34. Ra1 {[%clk 00:04:48]}
{[%emt 00:00:43]} Nxg5 {[%clk 00:50:36]} {[%emt 00:00:36]} 35. Qg4 {[%clk
00:04:12]} {[%emt 00:01:05]} Bb4+ {[%clk 00:50:35]} {[%emt 00:00:31]} 36. Kd3
{[%clk 00:04:12]} {[%emt 00:00:30]} e4+ {[%clk 00:50:55]} {[%emt 00:00:10]} 37.
Ke3 {[%clk 00:03:25]} {[%emt 00:01:17]} Ra3+ {[%clk 00:51:02]} {[%emt
00:00:23]} 38. Ke2 {[%clk 00:02:42]} {[%emt 00:01:13]} Qh2+ {[%clk 00:51:12]}
{[%emt 00:00:20]} 39. Kf1 {[%clk 00:02:23]} {[%emt 00:00:48]} Rf3+ {[%clk
00:51:27]} {[%emt 00:00:16]} 40. Qxf3 {[%clk 00:02:39]} {[%emt 00:00:13]} exf3
{[%clk 00:51:43]} {[%emt 00:00:15]} 41. Rxa2 {[%clk 00:02:33]} {[%emt
00:00:37]} Qh1+ {[%clk 00:51:29]} {[%emt 00:00:44]} 42. Kf2 {[%clk 00:01:59]}
{[%emt 00:01:03]} Qe1# {[%clk 00:51:52]} {[%emt 00:00:06]} 0-1

[Event "The Schackveckan 2023: Chessweek Elo-tournaments Group 2"]
[Site "Göteborgs schackcentrum, Vegagatan 20, Gothenburg, Sweden"]
[Date "2023.08.07"]
[Round "3.1"]
[White "Block, Benjamin"]
[Black "Green, David"]
[Result "1-0"]
[TimeControl "90 minutes for 40 moves + 30 minutes for the rest of the game + 30 seconds per move from move one."]
[WhiteFideId "1765493"]
[BlackFideId "1769332"]
[WhiteElo "1679"]
[BlackElo "1634"]

1. e4 {[%clk 01:30:57]} {[%emt 00:00:02]} c5 {[%clk 01:30:57]} {[%emt
00:00:04]} 2. Nf3 {[%clk 01:31:18]} {[%emt 00:00:08]} e6 {[%clk 01:31:25]}
{[%emt 00:00:03]} 3. d4 {[%clk 01:31:38]} {[%emt 00:00:10]} cxd4 {[%clk
01:31:53]} {[%emt 00:00:02]} 4. Nxd4 {[%clk 01:31:47]} {[%emt 00:00:20]} Nf6
{[%clk 01:32:22]} {[%emt 00:00:02]} 5. Nc3 {[%clk 01:31:58]} {[%emt 00:00:19]}
Nc6 {[%clk 01:32:25]} {[%emt 00:00:28]} 6. Ndb5 {[%clk 01:31:45]} {[%emt
00:00:41]} d6 {[%clk 01:30:46]} {[%emt 00:02:10]} 7. Bf4 {[%clk 01:32:05]}
{[%emt 00:00:10]} e5 {[%clk 01:31:14]} {[%emt 00:00:02]} 8. Bg5 {[%clk
01:32:21]} {[%emt 00:00:13]} a6 {[%clk 01:30:49]} {[%emt 00:00:56]} 9. Na3
{[%clk 01:32:39]} {[%emt 00:00:11]} b5 {[%clk 01:31:07]} {[%emt 00:00:13]} 10.
Nd5 {[%clk 01:32:55]} {[%emt 00:00:14]} Be7 {[%clk 01:31:03]} {[%emt 00:00:34]}
11. Bxf6 {[%clk 01:33:02]} {[%emt 00:00:23]} Bxf6 {[%clk 01:31:06]} {[%emt
00:00:28]} 12. c3 {[%clk 01:33:13]} {[%emt 00:00:18]} O-O {[%clk 01:30:54]}
{[%emt 00:00:42]} 13. Nc2 {[%clk 01:33:13]} {[%emt 00:00:30]} Bb7 {[%clk
01:27:43]} {[%emt 00:03:41]} 14. g3 {[%clk 01:32:31]} {[%emt 00:01:11]} Ne7
{[%clk 01:20:25]} {[%emt 00:07:49]} 15. Nxf6+ {[%clk 01:24:50]} {[%emt
00:08:11]} gxf6 {[%clk 01:20:54]} {[%emt 00:00:02]} 16. Bg2 {[%clk 01:24:19]}
{[%emt 00:01:00]} f5 {[%clk 01:20:02]} {[%emt 00:01:22]} 17. Qd3 {[%clk
01:21:16]} {[%emt 00:03:32]} fxe4 {[%clk 01:18:22]} {[%emt 00:02:12]} 18. Bxe4
{[%clk 01:21:31]} {[%emt 00:00:14]} Bxe4 {[%clk 01:17:07]} {[%emt 00:01:46]} 19.
Qxe4 {[%clk 01:20:21]} {[%emt 00:01:39]} f5 {[%clk 01:12:43]} {[%emt 00:04:54]}
20. Qe2 {[%clk 01:14:51]} {[%emt 00:05:59]} Nc6 {[%clk 01:02:47]} {[%emt
00:10:26]} 21. O-O-O {[%clk 01:11:03]} {[%emt 00:04:19]} Qf6 {[%clk 00:49:57]}
{[%emt 00:13:20]} 22. Qd2 {[%clk 01:09:16]} {[%emt 00:02:17]} Rfd8 {[%clk
00:48:27]} {[%emt 00:01:59]} 23. Qd5+ {[%clk 01:03:07]} {[%emt 00:06:39]} Qf7
{[%clk 00:46:58]} {[%emt 00:02:00]} 24. Qxc6 {[%clk 01:02:52]} {[%emt
00:00:44]} d5 {[%clk 00:46:24]} {[%emt 00:01:06]} 25. Kb1 {[%clk 00:50:07]}
{[%emt 00:13:14]} Rac8 {[%clk 00:44:49]} {[%emt 00:02:05]} 26. Qh6 {[%clk
00:41:34]} {[%emt 00:09:03]} a5 {[%clk 00:42:43]} {[%emt 00:02:37]} 27. Ne3
{[%clk 00:40:21]} {[%emt 00:01:42]} Kh8 {[%clk 00:41:47]} {[%emt 00:01:26]} 28.
Qg5 {[%clk 00:40:08]} {[%emt 00:00:42]} 1-0

[Event "The Schackveckan 2023: Chessweek Elo-tournaments Group 2"]
[Site "Göteborgs schackcentrum, Vegagatan 20, Gothenburg, Sweden"]
[Date "2023.08.07"]
[Round "3.2"]
[White "Pintaric, Felix"]
[Black "Lindholm, Marcus"]
[Result "0-1"]
[TimeControl "90 minutes for 40 moves + 30 minutes for the rest of the game + 30 seconds per move from move one."]
[WhiteFideId "1776096"]
[BlackFideId "1743473"]
[WhiteElo "1483"]
[BlackElo "1708"]

1. e4 {[%clk 01:30:52]} {[%emt 00:00:07]} c5 {[%clk 01:30:39]} {[%emt
00:00:22]} 2. c3 {[%clk 01:31:18]} {[%emt 00:00:05]} e6 {[%clk 01:30:48]}
{[%emt 00:00:20]} 3. d4 {[%clk 01:31:42]} {[%emt 00:00:06]} d5 {[%clk
01:31:10]} {[%emt 00:00:08]} 4. exd5 {[%clk 01:32:06]} {[%emt 00:00:06]} exd5
{[%clk 01:31:32]} {[%emt 00:00:08]} 5. Bb5+ {[%clk 01:32:22]} {[%emt 00:00:14]}
Nc6 {[%clk 01:31:21]} {[%emt 00:00:41]} 6. Nf3 {[%clk 01:32:45]} {[%emt
00:00:07]} Bd6 {[%clk 01:31:21]} {[%emt 00:00:29]} 7. dxc5 {[%clk 01:33:00]}
{[%emt 00:00:16]} Bxc5 {[%clk 01:31:44]} {[%emt 00:00:07]} 8. O-O {[%clk
01:33:06]} {[%emt 00:00:25]} Nf6 {[%clk 01:31:46]} {[%emt 00:00:28]} 9. Bg5
{[%clk 01:30:45]} {[%emt 00:02:50]} Be6 {[%clk 01:31:19]} {[%emt 00:00:57]} 10.
Nbd2 {[%clk 01:30:06]} {[%emt 00:01:10]} O-O {[%clk 01:31:09]} {[%emt
00:00:40]} 11. Nb3 {[%clk 01:30:23]} {[%emt 00:00:13]} Bb6 {[%clk 01:31:31]}
{[%emt 00:00:08]} 12. Bd3 {[%clk 01:29:43]} {[%emt 00:01:09]} Bg4 {[%clk
01:27:13]} {[%emt 00:04:49]} 13. Re1 {[%clk 01:27:46]} {[%emt 00:02:26]} Qd6
{[%clk 01:26:58]} {[%emt 00:00:45]} 14. h3 {[%clk 01:26:59]} {[%emt 00:01:17]}
Bh5 {[%clk 01:25:41]} {[%emt 00:01:48]} 15. Bh4 {[%clk 01:24:43]} {[%emt
00:02:45]} h6 {[%clk 01:09:42]} {[%emt 00:16:30]} 16. g4 {[%clk 01:19:47]}
{[%emt 00:05:26]} Nxg4 {[%clk 01:05:10]} {[%emt 00:05:02]} 17. hxg4 {[%clk
01:19:16]} {[%emt 00:01:00]} Bxg4 {[%clk 01:05:32]} {[%emt 00:00:08]} 18. Kg2
{[%clk 01:15:42]} {[%emt 00:04:04]} f5 {[%clk 01:02:59]} {[%emt 00:03:04]} 19.
Bg3 {[%clk 01:00:46]} {[%emt 00:15:25]} f4 {[%clk 00:52:03]} {[%emt 00:11:27]}
20. Bh2 {[%clk 01:00:57]} {[%emt 00:00:19]} Rf6 {[%clk 00:49:15]} {[%emt
00:03:17]} 21. Nbd2 {[%clk 00:54:10]} {[%emt 00:07:17]} Qd7 {[%clk 00:34:17]}
{[%emt 00:15:29]} 22. a4 {[%clk 00:23:59]} {[%emt 00:30:41]} Bh3+ {[%clk
00:31:20]} {[%emt 00:03:26]} 23. Kh1 {[%clk 00:24:12]} {[%emt 00:00:17]} Bxf2
{[%clk 00:31:12]} {[%emt 00:00:38]} 24. Re2 {[%clk 00:24:32]} {[%emt 00:00:10]}
Be3 {[%clk 00:30:07]} {[%emt 00:01:35]} 25. Bg1 {[%clk 00:23:44]} {[%emt
00:01:19]} Qg4 {[%clk 00:27:47]} {[%emt 00:02:49]} 26. Nh2 {[%clk 00:22:07]}
{[%emt 00:02:07]} Qg3 {[%clk 00:19:11]} {[%emt 00:09:06]} 27. Qe1 {[%clk
00:18:09]} {[%emt 00:04:28]} Bxg1 {[%clk 00:14:54]} {[%emt 00:04:48]} 28. Qxg3
{[%clk 00:17:38]} {[%emt 00:01:00]} fxg3 {[%clk 00:15:07]} {[%emt 00:00:17]} 29.
Kxg1 {[%clk 00:18:00]} {[%emt 00:00:07]} gxh2+ {[%clk 00:15:20]} {[%emt
00:00:18]} 30. Kxh2 {[%clk 00:18:15]} {[%emt 00:00:15]} Bg4 {[%clk 00:15:19]}
{[%emt 00:00:31]} 31. Rg2 {[%clk 00:18:03]} {[%emt 00:00:43]} h5 {[%clk
00:15:30]} {[%emt 00:00:19]} 32. Re1 {[%clk 00:18:02]} {[%emt 00:00:31]} Raf8
{[%emt 00:02:41]} 33. b4 {[%clk 00:16:15]} Rf2 {[%clk 00:15:15]} {[%emt
00:00:50]} 34. b5 {[%clk 00:16:09]} {[%emt 00:00:36]} Rxg2+ {[%clk 00:15:31]}
{[%emt 00:00:14]} 35. Kxg2 {[%clk 00:16:36]} {[%emt 00:00:02]} Nd8 {[%clk
00:10:42]} {[%emt 00:05:20]} 36. Re7 {[%clk 00:15:40]} {[%emt 00:01:27]} Ne6
{[%clk 00:10:07]} {[%emt 00:01:05]} 37. Kg3 {[%clk 00:14:46]} {[%emt 00:01:24]}
Nc5 {[%clk 00:08:53]} {[%emt 00:01:44]} 38. Bc2 {[%clk 00:15:13]} {[%emt
00:00:02]} a6 {[%clk 00:05:42]} {[%emt 00:03:41]} 39. b6 {[%clk 00:14:59]}
{[%emt 00:00:44]} Bd7 {[%clk 00:05:09]} {[%emt 00:01:03]} 40. Nf3 {[%clk
00:14:13]} {[%emt 00:01:17]} Re8 {[%clk 00:04:59]} {[%emt 00:00:39]} 41. Rxe8+
{[%clk 00:13:15]} {[%emt 00:01:28]} Bxe8 {[%clk 00:05:22]} {[%emt 00:00:07]} 42.
a5 {[%clk 00:13:37]} {[%emt 00:00:08]} Ne4+ {[%clk 00:05:34]} {[%emt 00:00:18]}
43. Bxe4 {[%clk 00:13:32]} {[%emt 00:00:35]} dxe4 {[%clk 00:05:45]} {[%emt
00:00:20]} 44. Ne5 {[%clk 00:12:48]} {[%emt 00:01:14]} g5 {[%clk 00:05:51]}
{[%emt 00:00:23]} 45. c4 {[%clk 00:12:47]} {[%emt 00:00:32]} h4+ {[%clk
00:03:16]} {[%emt 00:03:04]} 46. Kg4 {[%clk 00:11:50]} {[%emt 00:01:27]} e3
{[%clk 00:01:31]} {[%emt 00:02:15]} 47. Kf3 {[%clk 00:09:45]} {[%emt 00:02:35]}
h3 {[%clk 00:01:34]} {[%emt 00:00:27]} 48. Kg3 {[%clk 00:10:03]} {[%emt
00:00:12]} e2 {[%clk 00:01:46]} {[%emt 00:00:18]} 49. Nf3 {[%clk 00:09:09]}
{[%emt 00:01:24]} Bc6 {[%clk 00:02:04]} {[%emt 00:00:12]} 50. Ne1 {[%clk
00:09:16]} {[%emt 00:00:24]} g4 {[%clk 00:02:24]} {[%emt 00:00:08]} 51. c5
{[%clk 00:09:21]} {[%emt 00:00:26]} Kf7 {[%clk 00:02:45]} {[%emt 00:00:09]} 52.
Nd3 {[%clk 00:09:00]} {[%emt 00:00:51]} Be4 {[%clk 00:02:47]} {[%emt 00:00:27]}
0-1